Cogmind - Beta 11.1 @@@ ROGUE MODE // 2022.07.18 @ 09:54:23 Player: Crimson_Fox Result: Destroyed by G-47 Trooper with Particle Gun Performance ------------- Evolutions (0) 0 Regions Visited (1) 200 Robots Destroyed (12) 60 Value Destroyed (267) 267 Prototype IDs (0) 0 Alien Tech Used (0) 0 Bonus (0) 0 TOTAL SCORE: 527 Bonus ------- None Cogmind --------- Core Integrity 0/250 Matter 300/300 Energy 94/100 System Corruption 0% Temperature Warm (158) Movement Walking (120) Location -10/Materials Parts ------- > --- POWER (1) -------- (None) > --- PROPULSION (2) --- Aluminum Leg Aluminum Leg > --- UTILITY (2) ------ Small Storage Unit Targeting Computer > --- WEAPON (2) ------- Small Laser Small Laser > --- INVENTORY (8) ---- Aluminum Leg Aluminum Leg Aluminum Leg Wheel Wheel Power Shielding Small Laser Peak State ------------ > --- POWER ------------ Light Ion Engine > --- PROPULSION ------- Aluminum Leg Aluminum Leg > --- UTILITY ---------- Small Storage Unit Small Storage Unit > --- WEAPON ----------- EM Pulse Gun Light Assault Rifle > --- INVENTORY -------- Light Ion Engine Light Ion Engine Light Treads Light Treads Wheel Wheel EM Pulse Gun [Rating: 7] Favorites ----------- Power Light Ion Engine Engine Light Ion Engine Propulsion Aluminum Leg Leg Aluminum Leg Wheel Wheel Utility Small Storage Unit Device Heat Sink Storage Small Storage Unit Processor Targeting Computer Weapon Light Assault Rifle Energy Gun Small Laser Ballistic Gun Light Assault Rifle Special Weapon Mining Laser Build | -11 -10 ------- Run | Scr Mat Slots Evolved . | . . Power . | . . Propulsion . | . . Utility . | . . Weapon . | . . Parts Attached 22 | 8 14 Power 4 | 1 3 Engine 4 | 1 3 Core . | . . Reactor . | . . Propulsion 6 | 2 4 Treads . | . . Leg 4 | 2 2 Wheel 2 | . 2 Hover . | . . Flight . | . . Utility 5 | 3 2 Device 1 | . 1 Storage 3 | 3 . Processor 1 | . 1 Hackware . | . . Protection . | . . Artifact . | . . Weapon 7 | 2 5 Energy Gun 4 | 1 3 Energy Cannon . | . . Ballistic Gun 1 | 1 . Ballistic Cannon . | . . Launcher . | . . Special Weapon 2 | . 2 Impact Weapon . | . . Slashing Weapon . | . . Piercing Weapon . | . . Special Melee Weapon . | . . Unidentified Prototypes . | . . Parts Lost 10 | . 10 Power 3 | . 3 Propulsion 2 | . 2 Utility . | . . Weapon 5 | . 5 Highest Loss Streak 9 | . 9 To Critical Strikes . | . . Average Slot Usage (%) 94 | . 94 Engine 14 | . 14 Leg 22 | . 22 Wheel 3 | . 3 Device 4 | . 4 Storage 14 | . 14 Processor 8 | . 8 Energy Gun 16 | . 16 Ballistic Gun 7 | . 7 Special Weapon 1 | . 1 Naked Turns . | . . Heaviest Build 13 | 13 13 Greatest Support 20 | 20 20 Greatest Overweight (x) . | . . Average Overweight (x) . | . . Largest Inventory Capacity 8 | 8 8 Average Capacity 7 | 7 8 Most Carried 8 | 8 8 Average Carried 6 | 5 6 Final Capacity 8 | 8 8 Final Carried 8 | 8 7 Class Distribution -------------------- 71% | Mutant 28% | Scavenger-Mutant Dominant Class ---------------- Mutant | -10/Materials Resources | -11 -10 ----------- Run | Scr Mat Matter Collected 482 | 364 118 Remotely . | . . Salvage Created 443 | 164 279 Parts 22 | 8 14 Haulers Intercepted . | . . Recyclers Shooed 1 | . 1 Parts Field Recycled . | . . Retrieved Matter . | . . Parts Self-Destructed . | . . Prevented . | . . Kills | -11 -10 ------- Run | Scr Mat Combat Hostiles Destroyed 7 | . 7 Guns 6 | . 6 Cannons 1 | . 1 Classes Destroyed 4 | 3 1 Worker 3 | 2 1 Tunneler 1 | 1 . Recycler 1 | 1 . Grunt 7 | . 7 Best Kill Streak 6 | 1 6 Combat Bots Only 5 | . 5 Max Kills in Single Turn 1 | 1 1 Gunslinging . | . . Exploded . | . . Melee . | . . Uniques/NPCs Destroyed . | . . Combat | -11 -10 -------- Run | Scr Mat Damage Taken 1034 | 32 1002 Core 251 | . 251 Absorbed by Shields . | . . Core Remaining (%) 100 | 100 . Volleys Fired 50 | 12 38 Largest 2 | 2 2 Hottest 100 | 60 100 Shots Fired 75 | 24 51 Gun 71 | 24 47 Cannon . | . . Launcher . | . . Special 4 | . 4 Kinetic 35 | 12 23 Thermal 23 | . 23 Explosive . | . . Electromagnetic 17 | 12 5 Robot Hit Streak 8 | 7 8 Robot Miss Streak 2 | 2 2 Penetration Max . | . . Secondary Targets 1 | . 1 Max Gunslinging Chain 1 | . 1 Shots Hit Robots 51 | 15 36 Core Hits 27 | 9 18 Critical Kills . | . . Critical Parts Destroyed . | . . Critical Strikes 1 | . 1 Corrupt 1 | . 1 Melee Attacks . | . . Impact . | . . Slashing . | . . Piercing . | . . Sneak Attacks . | . . Combat Hostiles . | . . Follow-up Attacks . | . . Damage Inflicted 664 | 210 454 Guns 504 | 170 334 Cannons . | . . Explosions 111 | 40 71 Melee . | . . Ramming 1 | . 1 Kinetic 231 | 79 152 Thermal 299 | 40 259 Explosive . | . . Electromagnetic 133 | 91 42 Impact . | . . Slashing . | . . Piercing . | . . Highest Corruption . | . . Average Corruption . | . . Corruption Purged . | . . Corruption Blocked . | . . Overload Shots . | . . Overflow Damage 20 | 20 . Projectiles . | . . Explosions 20 | 20 . Melee . | . . Knockbacks . | . . Impact . | . . Kinetic . | . . Secondary . | . . Self-Inflicted Damage 59 | 32 27 Shots 2 | 1 1 Rammed . | . . Targets Rammed 1 | . 1 Kicked 1 | . 1 Crushed . | . . Highest Temperature 149 | 52 149 Average Temperature 52 | 24 61 Received Heat Transfer 534 | . 534 Siege Activations . | . . Robots Corrupted . | . . Combat Hostiles . | . . Parts Fried 1 | 1 . Impact Corruptions . | . . Robots Melted . | . . Combat Hostiles . | . . Parts Melted . | . . Heat Transferred 575 | 50 525 Parts Sabotaged . | . . Parts Stolen . | . . Parts Stripped . | . . Power Chain Reactions 2 | 1 1 Missiles Intercepted . | . . Alert | -11 -10 ------- Run | Scr Mat Peak Influence 160 | 20 160 Initial 13 | . 13 Average 62 | 6 83 Maximum Alert Level . | . . Low Security (%) 100 | 100 100 Level 1 . | . . Level 2 . | . . Level 3 . | . . Level 4 . | . . Level 5 . | . . High Security . | . . Max Security . | . . Squads Dispatched 1 | . 1 Investigation . | . . Extermination . | . . Reinforcement 1 | . 1 Assault . | . . Garrison . | . . Intercept . | . . Searches Triggered . | . . Construction Impeded . | . . Haulers Reinforced . | . . Active Scanning Responses . | . . Cargo Convoy Interrupts . | . . Stealth | -11 -10 --------- Run | Scr Mat Distress Signals . | . . Communications Jammed . | . . Distress Signals . | . . Times Spotted 14 | . 14 Peak Tracking Total 6 | . 6 Tactical Retreats 1 | . 1 Traps | -11 -10 ------- Run | Scr Mat Traps Triggered . | . . Indirectly . | . . Trap Hack Attempts . | . . Triggered . | . . Disarmed . | . . Reprogrammed . | . . Reused . | . . Traps Extracted . | . . Installed . | . . Triggered . | . . Machines | -11 -10 ---------- Run | Scr Mat Machines Disabled . | . . Max in Single Turn . | . . Machines Sabotaged . | . . Garrisons Compromised . | . . Overloaded Fab Kills . | . . Hacking | -11 -10 --------- Run | Scr Mat Machines Accessed 1 | . 1 Terminals 1 | . 1 Fabricators . | . . Repair Stations . | . . Recycling Units . | . . Scanalyzers . | . . Garrison Access . | . . Total Hacks 3 | . 3 Successful 1 | . 1 Failed 2 | . 2 Catastrophic 1 | . 1 Database Lockouts . | . . Manual . | . . Terminals 3 | . 3 Fabricators . | . . Repair Stations . | . . Recycling Units . | . . Scanalyzers . | . . Garrison Access . | . . Terminal Hacks 1 | . 1 Dispatch Records 1 | . 1 Fabricator Hacks . | . . Repair Station Hacks . | . . Recycling Unit Hacks . | . . Scanalyzer . | . . Garrison Access Hacks . | . . Unauthorized Hacks . | . . Terminals . | . . Fabricators . | . . Repair Stations . | . . Recycling Units . | . . Scanalyzers . | . . Garrison Access . | . . Data Cores Recovered . | . . Used . | . . Hacking Detections 1 | . 1 Full Trace Events . | . . Feedback Events . | . . Feedback Blocked . | . . Robot Schematics Acquired . | . . Robots Built . | . . Authchips . | . . Time . | . . Total Robot Build Rating . | . . Part Schematics Acquired . | . . Parts Built . | . . Authchips . | . . Time . | . . Total Part Build Rating . | . . Parts Repaired . | . . Time . | . . Parts Recycled . | . . Recycled Matter . | . . Retrieved Matter . | . . Retrieved Components . | . . Parts Scanalyzed . | . . Part Schematics Acquired . | . . Parts Damaged . | . . Bothacking | -11 -10 ------------ Run | Scr Mat Used RIF Installer . | . . Robots Hacked . | . . Non-combat . | . . Combat . | . . Robot Hacks Applied . | . . Relay Couplers Released . | . . Fabnet Peak Effective % . | . . Robots Rewired . | . . Allies Hacked . | . . Hacks Repelled . | . . Allies | -11 -10 -------- Run | Scr Mat Total Allies . | . . Largest Group . | . . Highest-Rated Group . | . . Highest-Rated Ally . | . . Total Orders . | . . Ally Attacks . | . . Total Damage . | . . Kills . | . . Allies Corrupted . | . . Allies Melted . | . . Intel | -11 -10 ------- Run | Scr Mat Robot Analysis Total . | . . Derelict Logs Recovered . | . . Drone Launches . | . . Drone Recoveries . | . . Exploration | -11 -10 ------------- Run | Scr Mat Turns Passed 551 | 155 396 Spaces Moved 313 | 81 232 Core 4 | 4 . Treads . | . . Legs 287 | 77 210 Wheels 22 | . 22 Hover . | . . Flight . | . . Fastest Speed 50 | 50 80 Average Speed 116 | 116 116 Slowest Speed 120 | 120 120 Overloaded Moves . | . . Propulsion Burnouts . | . . Robots Hopped . | . . Cave-ins Triggered . | . . Exploration Rate (%) 14 | 5 24 Regions Visited 1 Branch Regions . Pre-discovered Areas . | . . Known Exits Taken . | . . Unknown Exits Taken 1 | 1 . Scrap Searched . | . . Spaces Dug . | . . Terrain Destroyed 8 | 4 4 Melee . | . . Projectile . | . . AOE 8 | 4 4 Terrain Rammed . | . . Walls Destroyed . | . . Machines Disabled . | . . Actions | -11 -10 --------- Run | Scr Mat Total 427 | 121 306 Wait 3 | . 3 Move 312 | 80 232 Hop . | . . Pick Up 30 | 18 12 Fast Attach 2 | . 2 Attach 19 | 8 11 Detach . | . . Swap 1 | . 1 Drop 9 | 3 6 Fire 50 | 12 38 Melee . | . . Ram . | . . Kick 1 | . 1 Crush . | . . Escape Stasis . | . . Rewire . | . . Trap . | . . Miscellaneous . | . . Route ------- -11/Scrapyard -10/Materials History --------- Turn | Location | Event 5 | -11/Scrapyard | Discovered new exit (range 15) 156 | -11/Scrapyard | Entered Materials 343 | -10/Materials | Core integrity fell below 50% 361 | -10/Materials | Core integrity fell below 20% 385 | -10/Materials | Build established: Mutant 413 | -10/Materials | Lost 9 parts (2p2n5w) 552 | -10/Materials | Destroyed by G-47 Trooper with Particle Gun Last Messages --------------- Acquired Aluminum Leg. Dropped Wheel. Acquired 30 matter. Acquired 10 matter. Kicked R-06 Scavenger out of the way. Connecting with Recycling Unit... Current location identified: Materials Connecting with Terminal... >>Enumerate(Squads) Retrieving dispatch records... Found 7 active squads: 3x Surveillance 2x Patrol 2x Transport Acquired Aluminum Leg. Acquired Power Shielding. K-01 Serf cleans the Purification Channel. G-34 Mercenary destroyed. Switching to secondary target: G-47 Trooper. Ion Engine destroyed. Map ----- +----------------------------------------------------+ | | | | | | | | | | | | | | | | | | | ????????????????????????????????????????????? | | ????????????????????????????????????????????? | | ????????????????????????????????????????????? | | ????????????????????????????????????????????? | | ????????????????????????????????????????????? | | ????????????????????????????????????????????? | | ????????????????????????????????????????????? | | #########?????????????????########??#####???? | | #####?????????????# #??# !!#???? | | """ ! # #?????????????# #### !!#???? | | """ # #?????????????# """ # !!#???? | | """ # #?????#######?# """ # !!#???? | | + ####### #?# """ + !!#???? | | """ # #?#! # !!#???? | | """ # #?######## #####???? | | """ =# ######### #??????? | | #######+### g%@ #??????? | | #####+###????# * ## ########## T #??????? | | ????# #??????# ! ## #????????# #??????? | | ##### ###????# ## #????????######??????? | | ###### ## ############?????????? | | / ] ## ## #?????????? | | ###### ## ## """ """#?????????? | | ##########???# ! ## = ## """ Y"#?????????? | | ??????# ####### # """ """#?????????? | | ??????# %! % # #?????????? | | ??????# +% #?????????? | | ??????#" ^ % # [ #?????????? | | ??????#T """ """ % #! #?????????? | | ??????#" """"""""" ###########?????????? | | ?????? """"" " ?????????????????? | | ???? ? ??????????????? | | ?????????? ????????????? | | ?????????? ####### ########## ??????????? | | ?????????????????# #??????????? ??????????? | | ?????????????????# #??????????????????????? | | ?????????????????# #??????????????????????? | | ?????????????????# #??????????????????????? | | ?????????????????# #??????????????????????? | | ?????????????????# #??????????????????????? | | ????????????????? ???????????????????????? | +----------------------------------------------------+ Best States ------------- Heat Dissipation 35 Energy Generation 10 Energy Capacity 250 Matter Stores 386 Matter Capacity 400 Sight Range 16 Terrain Scan Density 10 Evasion (%) 55 Targeting Accuracy 5 Item Schematics ----------------- None Robot Schematics ------------------ None Fabricated ------------ Nothing Alien Tech Used ----------------- None Achievements -------------- None Challenges ------------ None Game ------ Seed ArcControlRailgun Manual? 0 Play Time 00:14:11 Cumulative 27.1 hours Start 2022.07.18 @ 09:41:45 End 2022.07.18 @ 09:54:23 Sessions 1 Manual Loads 0 Difficulty Rogue Special Mode None Game No. 34 Rogue 34 Adventurer 0 Explorer 0 Win Type - Total 0 Types 0/0/0/0/0/0/0/0/0 Lore% 12 Gallery% 24 Achievement% 10 Wizard Run 0 Options --------- ASCII 0 Keyboard 0 Movement Mouse Keybinds 0 Fullscreen 1 Font 24/Smallcaps Map View 113x50 Tactical HUD 0 Map Filters NONE Filters NONE Steam 1 RUN: 6f4fcf25-aea1-4c04-8619-acf83f1fe8fe